Workbook

Sheet Overview
B2: Move Rows in Excel
B4: Product | C4: Sales | F4: Total Sales
C5: Jan | D5: Feb | E5: Mar
B6: Pasta | C6: 5355 | D6: 7218 | E6: 3191 | F6: =SUM(C6:E6) -> 15764
B7: Pepper | C7: 7458 | D7: 7983 | E7: 5683 | F7: =SUM(C7:E7) -> 21124
B8: Mushroom | C8: 6114 | D8: 8934 | E8: 5189 | F8: =SUM(C8:E8) -> 20237
B9: Nut | C9: 5894 | D9: 8714 | E9: 6515 | F9: =SUM(C9:E9) -> 21123
B10: Wine | C10: 7906 | D10: 5786 | E10: 6888 | F10: =SUM(C10:E10) -> 20580
B11: Bread | C11: 6596 | D11: 8835 | E11: 7743 | F11: 23174
B12: Mocha | C12: 5426 | D12: 8602 | E12: 7144 | F12: 21172
B13: Veal | C13: 6491 | D13: 7709 | E13: 6611 | F13: 20811
B14: Fireball | C14: 8243 | D14: 8562 | E14: 6206 | F14: 23011
B15: Bread | C15: 6682 | D15: 6593 | E15: 7825 | F15: 21100
B16: Pattypan | C16: 6377 | D16: 5057 | E16: 7512 | F16: 18946

Sheet Keyboard Shortcut
B2: Using Keyboard Shortcuts | I2: << Try Yourself >>
B4: Product | C4: Sales | F4: Total Sales
C5: Jan | D5: Feb | E5: Mar
B6: Pasta | C6: 5355 | D6: 7218 | E6: 3191 | F6: =SUM(C6:E6) -> 15764 | I6: Pasta | J6: 5355 | K6: 7218 | L6: 3191 | M6: =SUM(J6:L6) -> 15764
B7: Pepper | C7: 7458 | D7: 7983 | E7: 5683 | F7: =SUM(C7:E7) -> 21124 | I7: Pepper | J7: 7458 | K7: 7983 | L7: 5683 | M7: =SUM(J7:L7) -> 21124
I8: Mushroom | J8: 6114 | K8: 8934 | L8: 5189 | M8: 20237
I9: Nut | J9: 5894 | K9: 8714 | L9: 6515 | M9: 21123
I10: Wine | J10: 7906 | K10: 5786 | L10: 6888 | M10: 20580
B11: Bread | C11: 6596 | D11: 8835 | E11: 7743 | F11: 23174 | I11: Bread | J11: 6596 | K11: 8835 | L11: 7743 | M11: 23174
B12: Mocha | C12: 5426 | D12: 8602 | E12: 7144 | F12: 21172 | I12: Mocha | J12: 5426 | K12: 8602 | L12: 7144 | M12: 21172
B13: Veal | C13: 6491 | D13: 7709 | E13: 6611 | F13: 20811 | I13: Veal | J13: 6491 | K13: 7709 | L13: 6611 | M13: 20811
B14: Fireball | C14: 8243 | D14: 8562 | E14: 6206 | F14: 23011 | I14: Fireball | J14: 8243 | K14: 8562 | L14: 6206 | M14: 23011
B15: Bread | C15: 6682 | D15: 6593 | E15: 7825 | F15: 21100 | I15: Bread | J15: 6682 | K15: 6593 | L15: 7825 | M15: 21100
B16: Pattypan | C16: 6377 | D16: 5057 | E16: 7512 | F16: 18946 | I16: Pattypan | J16: 6377 | K16: 5057 | L16: 7512 | M16: 18946
B17: Mushroom | C17: 6114 | D17: 8934 | E17: 5189 | F17: =SUM(C17:E17) -> 20237
B18: Nut | C18: 5894 | D18: 8714 | E18: 6515 | F18: =SUM(C18:E18) -> 21123
B19: Wine | C19: 7906 | D19: 5786 | E19: 6888 | F19: =SUM(C19:E19) -> 20580

Sheet Shift
B2: Using Keyboard Shortcuts | I2: << Try Yourself >>
B4: Product | C4: Sales | F4: Total Sales
C5: Jan | D5: Feb | E5: Mar
B6: Pasta | C6: 5355 | D6: 7218 | E6: 3191 | F6: =SUM(C6:E6) -> 15764 | I6: Pasta | J6: 5355 | K6: 7218 | L6: 3191 | M6: =SUM(J6:L6) -> 15764
B7: Pepper | C7: 7458 | D7: 7983 | E7: 5683 | F7: =SUM(C7:E7) -> 21124 | I7: Pepper | J7: 7458 | K7: 7983 | L7: 5683 | M7: =SUM(J7:L7) -> 21124
B8: Bread | C8: 6596 | D8: 8835 | E8: 7743 | F8: =SUM(C8:E8) -> 23174 | I8: Mushroom | J8: 6114 | K8: 8934 | L8: 5189 | M8: 20237
B9: Mushroom | C9: 6114 | D9: 8934 | E9: 5189 | F9: 20237 | I9: Nut | J9: 5894 | K9: 8714 | L9: 6515 | M9: 21123
B10: Nut | C10: 5894 | D10: 8714 | E10: 6515 | F10: 21123 | I10: Wine | J10: 7906 | K10: 5786 | L10: 6888 | M10: 20580
B11: Wine | C11: 7906 | D11: 5786 | E11: 6888 | F11: =SUM(C11:E11) -> 20580 | I11: Bread | J11: 6596 | K11: 8835 | L11: 7743 | M11: 23174
B12: Mocha | C12: 5426 | D12: 8602 | E12: 7144 | F12: 21172 | I12: Mocha | J12: 5426 | K12: 8602 | L12: 7144 | M12: 21172
B13: Veal | C13: 6491 | D13: 7709 | E13: 6611 | F13: 20811 | I13: Veal | J13: 6491 | K13: 7709 | L13: 6611 | M13: 20811
B14: Fireball | C14: 8243 | D14: 8562 | E14: 6206 | F14: 23011 | I14: Fireball | J14: 8243 | K14: 8562 | L14: 6206 | M14: 23011
B15: Bread | C15: 6682 | D15: 6593 | E15: 7825 | F15: 21100 | I15: Bread | J15: 6682 | K15: 6593 | L15: 7825 | M15: 21100
B16: Pattypan | C16: 6377 | D16: 5057 | E16: 7512 | F16: 18946 | I16: Pattypan | J16: 6377 | K16: 5057 | L16: 7512 | M16: 18946

Sheet Row to Column
B2: Applying Paste Options | Q2: << Try Yourself >>
B4: Product | C4: Sales | F4: Total Sales | Q4: Product | R4: Sales | U4: Total Sales
C5: Jan | D5: Feb | E5: Mar | R5: Jan | S5: Feb | T5: Mar
B6: Pasta | C6: 5355 | D6: 7218 | E6: 3191 | F6: =SUM(C6:E6) -> 15764 | Q6: Pasta | R6: 5355 | S6: 7218 | T6: 3191 | U6: =SUM(R6:T6) -> 15764
B7: Pepper | C7: 7458 | D7: 7983 | E7: 5683 | F7: =SUM(C7:E7) -> 21124 | Q7: Pepper | R7: 7458 | S7: 7983 | T7: 5683 | U7: =SUM(R7:T7) -> 21124
B8: Mushroom | C8: 6114 | D8: 8934 | E8: 5189 | F8: 20237 | Q8: Mushroom | R8: 6114 | S8: 8934 | T8: 5189 | U8: 20237
B9: Nut | C9: 5894 | D9: 8714 | E9: 6515 | F9: 21123 | Q9: Nut | R9: 5894 | S9: 8714 | T9: 6515 | U9: 21123
B10: Wine | C10: 7906 | D10: 5786 | E10: 6888 | F10: 20580 | Q10: Wine | R10: 7906 | S10: 5786 | T10: 6888 | U10: 20580
B11: Bread | C11: 6596 | D11: 8835 | E11: 7743 | F11: 23174 | Q11: Bread | R11: 6596 | S11: 8835 | T11: 7743 | U11: 23174
B12: Mocha | C12: 5426 | D12: 8602 | E12: 7144 | F12: 21172 | Q12: Mocha | R12: 5426 | S12: 8602 | T12: 7144 | U12: 21172
B13: Veal | C13: 6491 | D13: 7709 | E13: 6611 | F13: 20811 | Q13: Veal | R13: 6491 | S13: 7709 | T13: 6611 | U13: 20811
B14: Fireball | C14: 8243 | D14: 8562 | E14: 6206 | F14: 23011 | Q14: Fireball | R14: 8243 | S14: 8562 | T14: 6206 | U14: 23011
B15: Bread | C15: 6682 | D15: 6593 | E15: 7825 | F15: 21100 | Q15: Bread | R15: 6682 | S15: 6593 | T15: 7825 | U15: 21100
B16: Pattypan | C16: 6377 | D16: 5057 | E16: 7512 | F16: 18946 | Q16: Pattypan | R16: 6377 | S16: 5057 | T16: 7512 | U16: 18946
B18: Product | D18: Pasta | E18: Pepper | F18: Mushroom | G18: Nut | H18: Wine | I18: Bread | J18: Mocha | K18: Veal | L18: Fireball | M18: Bread | N18: Pattypan
B19: Sales | C19: Jan | D19: 5355 | E19: 7458 | F19: 6114 | G19: 5894 | H19: 7906 | I19: 6596 | J19: 5426 | K19: 6491 | L19: 8243 | M19: 6682 | N19: 6377
C20: Feb | D20: 7218 | E20: 7983 | F20: 8934 | G20: 8714 | H20: 5786 | I20: 8835 | J20: 8602 | K20: 7709 | L20: 8562 | M20: 6593 | N20: 5057
C21: Mar | D21: 3191 | E21: 5683 | F21: 5189 | G21: 6515 | H21: 6888 | I21: 7743 | J21: 7144 | K21: 6611 | L21: 6206 | M21: 7825 | N21: 7512
B22: Total Sales | D22: =SUM(D19:D21) -> 15764 | E22: =SUM(E19:E21) -> 21124 | F22: =SUM(F19:F21) -> 20237 | G22: =SUM(G19:G21) -> 21123 | H22: =SUM(H19:H21) -> 20580 | I22: =SUM(I19:I21) -> 23174 | J22: =SUM(J19:J21) -> 21172 | K22: =SUM(K19:K21) -> 20811 | L22: =SUM(L19:L21) -> 23011 | M22: =SUM(M19:M21) -> 21100 | N22: =SUM(N19:N21) -> 18946

Sheet TRANSPOSE
Q1: << Try Yourself >>
B2: Using TRANSPOSE Group
B4: Product | C4: Sales in Jan | D4: Sales in Feb | E4: Sales in Mar | F4: Total Sales
B5: Pasta | C5: 5355 | D5: 7218 | E5: 3191 | F5: =SUM(C5:E5) -> 15764 | Q5: Pepper | R5: 7458 | S5: 7983 | T5: 5683 | U5: =SUM(R5:T5) -> 21124
B6: Pepper | C6: 7458 | D6: 7983 | E6: 5683 | F6: =SUM(C6:E6) -> 21124 | Q6: Mushroom | R6: 6114 | S6: 8934 | T6: 5189 | U6: 20237
B7: Mushroom | C7: 6114 | D7: 8934 | E7: 5189 | F7: 20237 | Q7: Nut | R7: 5894 | S7: 8714 | T7: 6515 | U7: 21123
B8: Nut | C8: 5894 | D8: 8714 | E8: 6515 | F8: 21123 | Q8: Wine | R8: 7906 | S8: 5786 | T8: 6888 | U8: 20580
B9: Wine | C9: 7906 | D9: 5786 | E9: 6888 | F9: 20580 | Q9: Bread | R9: 6596 | S9: 8835 | T9: 7743 | U9: 23174
B11: =TRANSPOSE(B4:F9) -> Product | C11: Pasta | D11: Pepper | E11: Mushroom | F11: Nut | G11: Wine
B12: Sales in Jan | C12: 5355 | D12: 7458 | E12: 6114 | F12: 5894 | G12: 7906
B13: Sales in Feb | C13: 7218 | D13: 7983 | E13: 8934 | F13: 8714 | G13: 5786
B14: Sales in Mar | C14: 3191 | D14: 5683 | E14: 5189 | F14: 6515 | G14: 6888
B15: Total Sales | C15: 15764 | D15: 21124 | E15: 20237 | F15: 21123 | G15: 20580

Sheet Featured Img
Q1: << Try Yourself >>
B2: Move Rows in Excel
B4: Product | C4: Sales in Jan | D4: Sales in Feb | E4: Sales in Mar | F4: Total Sales
B5: Pasta | C5: 5355 | D5: 7218 | E5: 3191 | F5: =SUM(C5:E5) -> 15764 | Q5: Pepper | R5: 7458 | S5: 7983 | T5: 5683 | U5: =SUM(R5:T5) -> 21124
B6: Pepper | C6: 7458 | D6: 7983 | E6: 5683 | F6: =SUM(C6:E6) -> 21124 | Q6: Mushroom | R6: 6114 | S6: 8934 | T6: 5189 | U6: 20237
B7: Mushroom | C7: 6114 | D7: 8934 | E7: 5189 | F7: 20237 | Q7: Nut | R7: 5894 | S7: 8714 | T7: 6515 | U7: 21123
B8: Nut | C8: 5894 | D8: 8714 | E8: 6515 | F8: 21123 | Q8: Wine | R8: 7906 | S8: 5786 | T8: 6888 | U8: 20580
B9: Wine | C9: 7906 | D9: 5786 | E9: 6888 | F9: 20580 | Q9: Bread | R9: 6596 | S9: 8835 | T9: 7743 | U9: 23174
B11: =TRANSPOSE(B4:F9) -> Product | C11: Pasta | D11: Pepper | E11: Mushroom | F11: Nut | G11: Wine
B12: Sales in Jan | C12: 5355 | D12: 7458 | E12: 6114 | F12: 5894 | G12: 7906
B13: Sales in Feb | C13: 7218 | D13: 7983 | E13: 8934 | F13: 8714 | G13: 5786
B14: Sales in Mar | C14: 3191 | D14: 5683 | E14: 5189 | F14: 6515 | G14: 6888
B15: Total Sales | C15: 15764 | D15: 21124 | E15: 20237 | F15: 21123 | G15: 20580

Sheet Replacement
B2: Moving Row with Replacing
B4: Product | C4: Sales | F4: Total Sales
C5: Jan | D5: Feb | E5: Mar
B6: Pasta | C6: 5355 | D6: 7218 | E6: 3191 | F6: =SUM(C6:E6) -> 15764
B7: Veal | C7: 6491 | D7: 7709 | E7: 6611 | F7: =SUM(C7:E7) -> 20811
B8: Mushroom | C8: 6114 | D8: 8934 | E8: 5189 | F8: =SUM(C8:E8) -> 20237
B9: Nut | C9: 5894 | D9: 8714 | E9: 6515 | F9: 21123
B10: Wine | C10: 7906 | D10: 5786 | E10: 6888 | F10: 20580
B11: Bread | C11: 6596 | D11: 8835 | E11: 7743 | F11: 23174
B12: Mocha | C12: 5426 | D12: 8602 | E12: 7144 | F12: 21172
B14: Fireball | C14: 8243 | D14: 8562 | E14: 6206 | F14: 23011
B15: Bread | C15: 6682 | D15: 6593 | E15: 7825 | F15: 21100
B16: Pattypan | C16: 6377 | D16: 5057 | E16: 7512 | F16: 18946

Sheet Sort
B2: Using Sort Command
B4: Product | C4: Sales in Jan | D4: Sales in Feb | E4: Sales in Mar | F4: Total Sales
B5: Pepper | C5: 7458 | D5: 7983 | E5: 5683 | F5: =SUM(C5:E5) -> 21124 | G5: 1
B6: Mocha | C6: 5426 | D6: 8602 | E6: 7144 | F6: =SUM(C6:E6) -> 21172 | G6: 2
B7: Bread | C7: 6682 | D7: 6593 | E7: 7825 | F7: =SUM(C7:E7) -> 21100 | G7: 3
B8: Nut | C8: 5894 | D8: 8714 | E8: 6515 | F8: =SUM(C8:E8) -> 21123 | G8: 4
B9: Pasta | C9: 5355 | D9: 7218 | E9: 3191 | F9: =SUM(C9:E9) -> 15764 | G9: 5
B10: Pattypan | C10: 6377 | D10: 5057 | E10: 7512 | F10: =SUM(C10:E10) -> 18946 | G10: 6
B11: Wine | C11: 7906 | D11: 5786 | E11: 6888 | F11: =SUM(C11:E11) -> 20580 | G11: 7
B12: Veal | C12: 6491 | D12: 7709 | E12: 6611 | F12: =SUM(C12:E12) -> 20811 | G12: 8
B13: Bread | C13: 6596 | D13: 8835 | E13: 7743 | F13: =SUM(C13:E13) -> 23174 | G13: 9
B14: Mushroom | C14: 6114 | D14: 8934 | E14: 5189 | F14: =SUM(C14:E14) -> 20237 | G14: 10
B15: Fireball | C15: 8243 | D15: 8562 | E15: 6206 | F15: =SUM(C15:E15) -> 23011 | G15: 11

Sheet VBA
B2: Applying VBA Code | Q2: << Try Yourself >>
B4: Product | C4: Sales | F4: Total Sales | Q4: Product | R4: Sales | U4: Total Sales
C5: Jan | D5: Feb | E5: Mar | R5: Jan | S5: Feb | T5: Mar
B6: Pasta | C6: 5355 | D6: 7218 | E6: 3191 | F6: =SUM(C6:E6) -> 15764 | Q6: Pasta | R6: 5355 | S6: 7218 | T6: 3191 | U6: =SUM(R6:T6) -> 15764
B7: Pepper | C7: 7458 | D7: 7983 | E7: 5683 | F7: =SUM(C7:E7) -> 21124 | Q7: Pepper | R7: 7458 | S7: 7983 | T7: 5683 | U7: =SUM(R7:T7) -> 21124
B8: Mushroom | C8: 6114 | D8: 8934 | E8: 5189 | F8: 20237 | Q8: Mushroom | R8: 6114 | S8: 8934 | T8: 5189 | U8: 20237
B9: Nut | C9: 5894 | D9: 8714 | E9: 6515 | F9: 21123 | Q9: Nut | R9: 5894 | S9: 8714 | T9: 6515 | U9: 21123
B10: Wine | C10: 7906 | D10: 5786 | E10: 6888 | F10: 20580 | Q10: Wine | R10: 7906 | S10: 5786 | T10: 6888 | U10: 20580
B11: Bread | C11: 6596 | D11: 8835 | E11: 7743 | F11: 23174 | Q11: Bread | R11: 6596 | S11: 8835 | T11: 7743 | U11: 23174
B12: Mocha | C12: 5426 | D12: 8602 | E12: 7144 | F12: 21172 | Q12: Mocha | R12: 5426 | S12: 8602 | T12: 7144 | U12: 21172
B13: Veal | C13: 6491 | D13: 7709 | E13: 6611 | F13: 20811 | Q13: Veal | R13: 6491 | S13: 7709 | T13: 6611 | U13: 20811
B14: Fireball | C14: 8243 | D14: 8562 | E14: 6206 | F14: 23011 | Q14: Fireball | R14: 8243 | S14: 8562 | T14: 6206 | U14: 23011
B15: Bread | C15: 6682 | D15: 6593 | E15: 7825 | F15: 21100 | Q15: Bread | R15: 6682 | S15: 6593 | T15: 7825 | U15: 21100
B16: Pattypan | C16: 6377 | D16: 5057 | E16: 7512 | F16: 18946 | Q16: Pattypan | R16: 6377 | S16: 5057 | T16: 7512 | U16: 18946
B18: Product | D18: Pasta | E18: Pepper | F18: Mushroom | G18: Nut | H18: Wine | I18: Bread | J18: Mocha | K18: Veal | L18: Fireball | M18: Bread | N18: Pattypan
B19: Sales | C19: Jan | D19: 5355 | E19: 7458 | F19: 6114 | G19: 5894 | H19: 7906 | I19: 6596 | J19: 5426 | K19: 6491 | L19: 8243 | M19: 6682 | N19: 6377
C20: Feb | D20: 7218 | E20: 7983 | F20: 8934 | G20: 8714 | H20: 5786 | I20: 8835 | J20: 8602 | K20: 7709 | L20: 8562 | M20: 6593 | N20: 5057
C21: Mar | D21: 3191 | E21: 5683 | F21: 5189 | G21: 6515 | H21: 6888 | I21: 7743 | J21: 7144 | K21: 6611 | L21: 6206 | M21: 7825 | N21: 7512
B22: Total Sales | D22: =SUM(D19:D21) -> 15764 | E22: =SUM(E19:E21) -> 21124 | F22: =SUM(F19:F21) -> 20237 | G22: =SUM(G19:G21) -> 21123 | H22: =SUM(H19:H21) -> 20580 | I22: =SUM(I19:I21) -> 23174 | J22: =SUM(J19:J21) -> 21172 | K22: =SUM(K19:K21) -> 20811 | L22: =SUM(L19:L21) -> 23011 | M22: =SUM(M19:M21) -> 21100 | N22: =SUM(N19:N21) -> 18946

Sheet Table1
A1: Column1 | B1: Column2 | C1: Column3 | D1: Column4 | E1: Column5 | F1: Column6 | G1: Column7 | H1: Column8 | I1: Column9 | J1: Column10 | K1: Column11 | L1: Column12
B2: Pasta | C2: Pepper | D2: Mushroom | E2: Nut | F2: Wine | G2: Bread | H2: Mocha | I2: Veal | J2: Fireball | K2: Bread | L2: Pattypan
A3: Jan | B3: 5355 | C3: 7458 | D3: 6114 | E3: 5894 | F3: 7906 | G3: 6596 | H3: 5426 | I3: 6491 | J3: 8243 | K3: 6682 | L3: 6377
A4: Feb | B4: 7218 | C4: 7983 | D4: 8934 | E4: 8714 | F4: 5786 | G4: 8835 | H4: 8602 | I4: 7709 | J4: 8562 | K4: 6593 | L4: 5057
A5: Mar | B5: 3191 | C5: 5683 | D5: 5189 | E5: 6515 | F5: 6888 | G5: 7743 | H5: 7144 | I5: 6611 | J5: 6206 | K5: 7825 | L5: 7512
B6: 15764 | C6: 21124 | D6: 20237 | E6: 21123 | F6: 20580 | G6: 23174 | H6: 21172 | I6: 20811 | J6: 23011 | K6: 21100 | L6: 18946

Sheet Power Query
B2: Using Power Query | Q2: << Try Yourself >>
B4: Column1 | C4: Column2 | D4: Column3 | E4: Column4 | F4: Column5 | Q4: Product | R4: Sales | U4: Total Sales
B5: Product | C5: Sales | F5: Total Sales | R5: Jan | S5: Feb | T5: Mar
C6: Jan | D6: Feb | E6: Mar | Q6: Pasta | R6: 5355 | S6: 7218 | T6: 3191 | U6: =SUM(R6:T6) -> 15764
B7: Pasta | C7: 5355 | D7: 7218 | E7: 3191 | F7: =SUM(C7:E7) -> 15764 | Q7: Pepper | R7: 7458 | S7: 7983 | T7: 5683 | U7: =SUM(R7:T7) -> 21124
B8: Pepper | C8: 7458 | D8: 7983 | E8: 5683 | F8: =SUM(C8:E8) -> 21124 | Q8: Mushroom | R8: 6114 | S8: 8934 | T8: 5189 | U8: 20237
B9: Mushroom | C9: 6114 | D9: 8934 | E9: 5189 | F9: 20237 | Q9: Nut | R9: 5894 | S9: 8714 | T9: 6515 | U9: 21123
B10: Nut | C10: 5894 | D10: 8714 | E10: 6515 | F10: 21123 | Q10: Wine | R10: 7906 | S10: 5786 | T10: 6888 | U10: 20580
B11: Wine | C11: 7906 | D11: 5786 | E11: 6888 | F11: 20580 | Q11: Bread | R11: 6596 | S11: 8835 | T11: 7743 | U11: 23174
B12: Bread | C12: 6596 | D12: 8835 | E12: 7743 | F12: 23174 | Q12: Mocha | R12: 5426 | S12: 8602 | T12: 7144 | U12: 21172
B13: Mocha | C13: 5426 | D13: 8602 | E13: 7144 | F13: 21172 | Q13: Veal | R13: 6491 | S13: 7709 | T13: 6611 | U13: 20811
B14: Veal | C14: 6491 | D14: 7709 | E14: 6611 | F14: 20811 | Q14: Fireball | R14: 8243 | S14: 8562 | T14: 6206 | U14: 23011
B15: Fireball | C15: 8243 | D15: 8562 | E15: 6206 | F15: 23011 | Q15: Bread | R15: 6682 | S15: 6593 | T15: 7825 | U15: 21100
B16: Bread | C16: 6682 | D16: 6593 | E16: 7825 | F16: 21100 | Q16: Pattypan | R16: 6377 | S16: 5057 | T16: 7512 | U16: 18946
B17: Pattypan | C17: 6377 | D17: 5057 | E17: 7512 | F17: 18946

Sheet Nth Rows
B2: Combination of the ISEVEN, ROW, and IF functions | Q2: << Try Yourself >>
B4: Product | C4: Sales | F4: Total Sales | G4: Alternative Value | Q4: Product | R4: Sales | U4: Total Sales
C5: Jan | D5: Feb | E5: Mar | R5: Jan | S5: Feb | T5: Mar
B6: Pasta | C6: 5355 | D6: 7218 | E6: 3191 | F6: =SUM(C6:E6) -> 15764 | G6: =IF(ISEVEN(ROW(F6)),F6,"") -> 15764 | H6: =IF(ISEVEN(ROW(F6)),"",F6) ->  | Q6: Pasta | R6: 5355 | S6: 7218 | T6: 3191 | U6: =SUM(R6:T6) -> 15764
B7: Pepper | C7: 7458 | D7: 7983 | E7: 5683 | F7: =SUM(C7:E7) -> 21124 | G7: =IF(ISEVEN(ROW(F7)),F7,"") ->  | H7: =IF(ISEVEN(ROW(F7)),"",F7) -> 21124 | Q7: Pepper | R7: 7458 | S7: 7983 | T7: 5683 | U7: =SUM(R7:T7) -> 21124
B8: Mushroom | C8: 6114 | D8: 8934 | E8: 5189 | F8: 20237 | G8: 20237 | Q8: Mushroom | R8: 6114 | S8: 8934 | T8: 5189 | U8: 20237
B9: Nut | C9: 5894 | D9: 8714 | E9: 6515 | F9: 21123 | H9: 21123 | Q9: Nut | R9: 5894 | S9: 8714 | T9: 6515 | U9: 21123
B10: Wine | C10: 7906 | D10: 5786 | E10: 6888 | F10: 20580 | G10: 20580 | Q10: Wine | R10: 7906 | S10: 5786 | T10: 6888 | U10: 20580
B11: Bread | C11: 6596 | D11: 8835 | E11: 7743 | F11: 23174 | H11: 23174 | Q11: Bread | R11: 6596 | S11: 8835 | T11: 7743 | U11: 23174
B12: Mocha | C12: 5426 | D12: 8602 | E12: 7144 | F12: 21172 | G12: 21172 | Q12: Mocha | R12: 5426 | S12: 8602 | T12: 7144 | U12: 21172
B13: Veal | C13: 6491 | D13: 7709 | E13: 6611 | F13: 20811 | H13: 20811 | Q13: Veal | R13: 6491 | S13: 7709 | T13: 6611 | U13: 20811
B14: Fireball | C14: 8243 | D14: 8562 | E14: 6206 | F14: 23011 | G14: 23011 | Q14: Fireball | R14: 8243 | S14: 8562 | T14: 6206 | U14: 23011
B15: Bread | C15: 6682 | D15: 6593 | E15: 7825 | F15: 21100 | H15: 21100 | Q15: Bread | R15: 6682 | S15: 6593 | T15: 7825 | U15: 21100
B16: Pattypan | C16: 6377 | D16: 5057 | E16: 7512 | F16: 18946 | G16: 18946 | Q16: Pattypan | R16: 6377 | S16: 5057 | T16: 7512 | U16: 18946
